[Event "Titled Tuesday Blitz February 15 Late 2022"]
[White "Hamley, Ryan"]
[Black "Jobava, Baadur"]
[WhiteFideId "30959497"]
[BlackFideId "13601520"]
[WhiteElo "2420"]
[BlackElo "2617"]
[Result "0-1"]
[Round "05"]
[TimeControl "180+1"]
[Date "2022.02.15"]
[WhiteClock "0:00:05"]
[BlackClock "0:00:19"]

1. d4 {[%clk 0:02:59]}  Nf6 {[%clk 0:02:49]} 2. c4 {[%clk 0:02:58]}  e6 {[%clk 0:02:49]} 3. Nf3 {[%clk 0:02:58]}  c5 {[%clk 0:02:50]} 4. d5 {[%clk 0:02:57]}  exd5 {[%clk 0:02:50]} 5. cxd5 {[%clk 0:02:58]}  d6 {[%clk 0:02:51]} 6. Nc3 {[%clk 0:02:58]}  g6 {[%clk 0:02:52]} 7. e4 {[%clk 0:02:56]}  Bg7 {[%clk 0:02:52]} 8. Qa4+ {[%clk 0:02:56]}  Nbd7 {[%clk 0:02:46]} 9. Bf4 {[%clk 0:02:54]}  O-O {[%clk 0:02:45]} 10. Be2 {[%clk 0:02:51]}  Re8 {[%clk 0:02:44]} 11. Nd2 {[%clk 0:02:51]}  Ne5 {[%clk 0:02:37]} 12. Qb3 {[%clk 0:02:42]}  Rb8 {[%clk 0:02:25]} 13. a4 {[%clk 0:02:41]}  Nfg4 {[%clk 0:02:13]} 14. O-O {[%clk 0:02:31]}  g5 {[%clk 0:02:13]} 15. Bg3 {[%clk 0:02:29]}  h5 {[%clk 0:02:13]} 16. h3 {[%clk 0:02:29]}  h4 {[%clk 0:02:11]} 17. Bxe5 {[%clk 0:02:06]}  Nxe5 {[%clk 0:02:12]} 18. a5 {[%clk 0:02:04]}  g4 {[%clk 0:02:00]} 19. hxg4 {[%clk 0:01:50]}  Nxg4 {[%clk 0:01:56]} 20. Nc4 {[%clk 0:01:47]}  Ne5 {[%clk 0:01:51]} 21. f4 {[%clk 0:01:35]}  Nxc4 {[%clk 0:01:47]} 22. Qxc4 {[%clk 0:01:36]}  Bd4+ {[%clk 0:01:37]} 23. Kh1 {[%clk 0:01:35]}  Kg7 {[%clk 0:01:30]} 24. f5 {[%clk 0:01:30]}  Qg5 {[%clk 0:01:24]} 25. Qd3 {[%clk 0:01:28]}  Be5 {[%clk 0:01:20]} 26. Rf3 {[%clk 0:01:27]}  Rh8 {[%clk 0:01:20]} 27. Raf1 {[%clk 0:01:22]}  Kf6 {[%clk 0:01:18]} 28. Nd1 {[%clk 0:01:18]}  Bd7 {[%clk 0:01:17]} 29. Ne3 {[%clk 0:01:18]}  Rbg8 {[%clk 0:01:17]} 30. Rh3 {[%clk 0:01:15]}  Ke7 {[%clk 0:01:13]} 31. Bf3 {[%clk 0:01:02]}  f6 {[%clk 0:00:59]} 32. Nc4 {[%clk 0:00:59]}  Bd4 {[%clk 0:00:54]} 33. b4 {[%clk 0:00:36]}  Qf4 {[%clk 0:00:50]} 34. bxc5 {[%clk 0:00:34]}  Bxc5 {[%clk 0:00:50]} 35. Qd2 {[%clk 0:00:30]}  Qxd2 {[%clk 0:00:49]} 36. Nxd2 {[%clk 0:00:31]}  Rg3 {[%clk 0:00:47]} 37. Rb1 {[%clk 0:00:29]}  Bc8 {[%clk 0:00:47]} 38. Nb3 {[%clk 0:00:21]}  Be3 {[%clk 0:00:46]} 39. Re1 {[%clk 0:00:20]}  Bf4 {[%clk 0:00:43]} 40. Kg1 {[%clk 0:00:19]}  Rxh3 {[%clk 0:00:42]} 41. gxh3 {[%clk 0:00:20]}  Rg8+ {[%clk 0:00:43]} 42. Bg2 {[%clk 0:00:15]}  Bd7 {[%clk 0:00:42]} 43. Nd4 {[%clk 0:00:14]}  Be5 {[%clk 0:00:42]} 44. Rd1 {[%clk 0:00:14]}  Rc8 {[%clk 0:00:29]} 45. Ne6 {[%clk 0:00:13]}  Rc2 {[%clk 0:00:26]} 46. Rb1 {[%clk 0:00:12]}  Bc8 {[%clk 0:00:26]} 47. Rb3 {[%clk 0:00:11]}  Ra2 {[%clk 0:00:25]} 48. Rb4 {[%clk 0:00:07]}  Ra1+ {[%clk 0:00:23]} 49. Kf2 {[%clk 0:00:07]}  Bg3+ {[%clk 0:00:22]} 50. Kf3 {[%clk 0:00:06]}  Rxa5 {[%clk 0:00:20]} 51. Rc4 {[%clk 0:00:06]}  Bd7 {[%clk 0:00:19]} 52. Rc7 {[%clk 0:00:07]}  Rb5 {[%clk 0:00:18]} 53. Bf1 {[%clk 0:00:07]}  Rb3+ {[%clk 0:00:18]} 54. Kg4 {[%clk 0:00:07]}  a5 {[%clk 0:00:19]} 55. Bc4 {[%clk 0:00:06]}  Rc3 {[%clk 0:00:19]} 56. Rxb7 {[%clk 0:00:05]}  Rxc4 {[%clk 0:00:19]} 0-1


[Site "https://www.chess.com"]

[Event "Titled Tuesday Blitz February 15 Late 2022"]
[White "Hoffmann, Asa"]
[Black "Antonio, Jorge Carlos"]
[WhiteFideId "2001470"]
[BlackFideId "113190"]
[WhiteElo "2117"]
[BlackElo "2247"]
[Result "1/2-1/2"]
[Round "05"]
[TimeControl "180+1"]
[Date "2022.02.16"]
[WhiteClock "0:01:02"]
[BlackClock "0:01:13"]

1. d4 {[%clk 0:02:56]}  d5 {[%clk 0:02:59]} 2. Bg5 {[%clk 0:02:52]}  c6 {[%clk 0:02:59]} 3. e3 {[%clk 0:02:51]}  f6 {[%clk 0:02:57]} 4. Bf4 {[%clk 0:02:50]}  Nd7 {[%clk 0:02:54]} 5. Nf3 {[%clk 0:02:49]}  Qb6 {[%clk 0:02:53]} 6. b3 {[%clk 0:02:49]}  g5 {[%clk 0:02:49]} 7. Bg3 {[%clk 0:02:49]}  h5 {[%clk 0:02:47]} 8. h3 {[%clk 0:02:48]}  Nh6 {[%clk 0:02:42]} 9. Bd3 {[%clk 0:02:47]}  Nf7 {[%clk 0:02:36]} 10. Bg6 {[%clk 0:02:39]}  Bg7 {[%clk 0:02:33]} 11. Nbd2 {[%clk 0:02:38]}  Nf8 {[%clk 0:02:28]} 12. Bd3 {[%clk 0:02:36]}  e5 {[%clk 0:02:25]} 13. dxe5 {[%clk 0:02:24]}  fxe5 {[%clk 0:02:25]} 14. e4 {[%clk 0:02:22]}  h4 {[%clk 0:02:21]} 15. Bh2 {[%clk 0:02:22]}  g4 {[%clk 0:02:19]} 16. hxg4 {[%clk 0:02:18]}  Bxg4 {[%clk 0:02:18]} 17. Be2 {[%clk 0:02:17]}  O-O-O {[%clk 0:02:13]} 18. exd5 {[%clk 0:02:05]}  cxd5 {[%clk 0:02:08]} 19. c4 {[%clk 0:01:55]}  dxc4 {[%clk 0:02:01]} 20. bxc4 {[%clk 0:01:53]}  Ne6 {[%clk 0:01:57]} 21. Qb3 {[%clk 0:01:46]}  Qxb3 {[%clk 0:01:47]} 22. axb3 {[%clk 0:01:46]}  h3 {[%clk 0:01:42]} 23. gxh3 {[%clk 0:01:30]}  Bxh3 {[%clk 0:01:41]} 24. Rxa7 {[%clk 0:01:21]}  Bg2 {[%clk 0:01:37]} 25. Ra8+ {[%clk 0:01:20]}  Kd7 {[%clk 0:01:36]} 26. Rxd8+ {[%clk 0:01:19]}  Kxd8 {[%clk 0:01:33]} 27. Rg1 {[%clk 0:01:18]}  Bxf3 {[%clk 0:01:30]} 28. Nxf3 {[%clk 0:01:14]}  e4 {[%clk 0:01:30]} 29. Nd2 {[%clk 0:01:02]}  Rxh2 {[%clk 0:01:26]} 30. Nxe4 {[%clk 0:01:02]}  Bd4 {[%clk 0:01:13]} 1/2-1/2


[Site "https://www.chess.com"]

[Event "Titled Tuesday Blitz February 15 Late 2022"]
[White "Horak, Martin"]
[Black "Namitbir Singh Walia"]
[WhiteFideId "367095"]
[BlackFideId "35071068"]
[WhiteElo "1997"]
[BlackElo "1479"]
[Result "0-1"]
[Round "05"]
[TimeControl "180+1"]
[Date "2022.02.16"]
[WhiteClock "0:00:01"]
[BlackClock "0:00:20"]

1. d4 {[%clk 0:03:00]}  d5 {[%clk 0:02:58]} 2. c4 {[%clk 0:02:56]}  c6 {[%clk 0:02:58]} 3. Nf3 {[%clk 0:02:55]}  Nf6 {[%clk 0:02:58]} 4. g3 {[%clk 0:02:52]}  e6 {[%clk 0:02:52]} 5. Bg2 {[%clk 0:02:51]}  dxc4 {[%clk 0:02:52]} 6. Ne5 {[%clk 0:02:50]}  Bb4+ {[%clk 0:02:27]} 7. Nc3 {[%clk 0:02:37]}  Nd5 {[%clk 0:02:25]} 8. Bd2 {[%clk 0:02:12]}  b5 {[%clk 0:02:07]} 9. O-O {[%clk 0:02:04]}  Bxc3 {[%clk 0:01:59]} 10. bxc3 {[%clk 0:02:02]}  O-O {[%clk 0:01:59]} 11. a4 {[%clk 0:01:51]}  Bb7 {[%clk 0:01:56]} 12. Rb1 {[%clk 0:01:38]}  a6 {[%clk 0:01:55]} 13. Nxc4 {[%clk 0:01:37]}  Qc7 {[%clk 0:01:46]} 14. Ne5 {[%clk 0:01:32]}  Nb6 {[%clk 0:01:43]} 15. Bf4 {[%clk 0:01:23]}  Qc8 {[%clk 0:01:13]} 16. axb5 {[%clk 0:01:06]}  cxb5 {[%clk 0:01:12]} 17. e4 {[%clk 0:00:39]}  N8d7 {[%clk 0:01:08]} 18. Nd3 {[%clk 0:00:32]}  Qxc3 {[%clk 0:01:02]} 19. Bd6 {[%clk 0:00:28]}  Rfc8 {[%clk 0:01:01]} 20. Nc5 {[%clk 0:00:29]}  Nxc5 {[%clk 0:00:58]} 21. dxc5 {[%clk 0:00:24]}  Nc4 {[%clk 0:00:55]} 22. Rc1 {[%clk 0:00:21]}  Qb2 {[%clk 0:00:52]} 23. Qd3 {[%clk 0:00:10]}  Rd8 {[%clk 0:00:47]} 24. Rb1 {[%clk 0:00:05]}  Qd2 {[%clk 0:00:38]} 25. Rfd1 {[%clk 0:00:03]}  Qxd3 {[%clk 0:00:35]} 26. Rxd3 {[%clk 0:00:03]}  e5 {[%clk 0:00:27]} 27. f4 {[%clk 0:00:03]}  f6 {[%clk 0:00:23]} 28. fxe5 {[%clk 0:00:03]}  Nxe5 {[%clk 0:00:22]} 29. Rd2 {[%clk 0:00:02]}  Nc4 {[%clk 0:00:22]} 30. Rd3 {[%clk 0:00:02]}  Kf7 {[%clk 0:00:21]} 31. Rc1 {[%clk 0:00:01]}  Re8 {[%clk 0:00:20]} 0-1


[Site "https://www.chess.com"]

[Event "Titled Tuesday Blitz February 15 Late 2022"]
[White "Janaszak, Dawid"]
[Black "Balint, Vilmos"]
[WhiteFideId "1119206"]
[BlackFideId "718050"]
[WhiteElo "2199"]
[BlackElo "2059"]
[Result "1-0"]
[Round "05"]
[TimeControl "180+1"]
[Date "2022.02.16"]
[WhiteClock "0:01:31"]
[BlackClock "0:01:31"]

1. e4 {[%clk 0:03:00]}  c5 {[%clk 0:02:56]} 2. Nc3 {[%clk 0:03:00]}  a6 {[%clk 0:02:55]} 3. Nge2 {[%clk 0:02:57]}  g6 {[%clk 0:02:54]} 4. g3 {[%clk 0:02:55]}  Bg7 {[%clk 0:02:54]} 5. d4 {[%clk 0:02:54]}  cxd4 {[%clk 0:02:53]} 6. Nxd4 {[%clk 0:02:55]}  Nc6 {[%clk 0:02:54]} 7. Be3 {[%clk 0:02:55]}  Nf6 {[%clk 0:02:52]} 8. Bg2 {[%clk 0:02:54]}  O-O {[%clk 0:02:52]} 9. h3 {[%clk 0:02:53]}  Nxd4 {[%clk 0:02:51]} 10. Bxd4 {[%clk 0:02:52]}  d6 {[%clk 0:02:51]} 11. O-O {[%clk 0:02:52]}  Be6 {[%clk 0:02:51]} 12. a4 {[%clk 0:02:48]}  Rc8 {[%clk 0:02:47]} 13. a5 {[%clk 0:02:45]}  Nd7 {[%clk 0:02:47]} 14. Kh2 {[%clk 0:02:33]}  Bxd4 {[%clk 0:02:41]} 15. Qxd4 {[%clk 0:02:34]}  Qc7 {[%clk 0:02:36]} 16. f4 {[%clk 0:02:31]}  Qc5 {[%clk 0:02:36]} 17. Qd2 {[%clk 0:02:28]}  Bc4 {[%clk 0:02:34]} 18. Rfe1 {[%clk 0:02:24]}  f6 {[%clk 0:02:32]} 19. h4 {[%clk 0:02:05]}  Bf7 {[%clk 0:02:30]} 20. Bh3 {[%clk 0:02:03]}  Rfd8 {[%clk 0:02:21]} 21. Re2 {[%clk 0:02:02]}  Rc7 {[%clk 0:02:15]} 22. Nd5 {[%clk 0:02:00]}  Bxd5 {[%clk 0:02:13]} 23. exd5 {[%clk 0:02:00]}  Nf8 {[%clk 0:01:51]} 24. Ra3 {[%clk 0:01:58]}  Kf7 {[%clk 0:01:48]} 25. h5 {[%clk 0:01:54]}  f5 {[%clk 0:01:44]} 26. g4 {[%clk 0:01:42]}  Re8 {[%clk 0:01:35]} 27. hxg6+ {[%clk 0:01:39]}  hxg6 {[%clk 0:01:35]} 28. gxf5 {[%clk 0:01:39]}  gxf5 {[%clk 0:01:30]} 29. Bxf5 {[%clk 0:01:37]}  Nd7 {[%clk 0:01:30]} 30. Be6+ {[%clk 0:01:33]}  Kf8 {[%clk 0:01:30]} 31. Rg3 {[%clk 0:01:32]}  Nf6 {[%clk 0:01:31]} 32. Reg2 {[%clk 0:01:31]} 1-0


[Site "https://www.chess.com"]

[Event "Titled Tuesday Blitz February 15 Late 2022"]
[White "Jimenez Fernandez, Rebeca"]
[Black "Stankovic, Ivan G"]
[WhiteFideId "32070934"]
[BlackFideId "902837"]
[WhiteElo "1853"]
[BlackElo "2195"]
[Result "0-1"]
[Round "05"]
[TimeControl "180+1"]
[Date "2022.02.16"]
[WhiteClock "0:00:03"]
[BlackClock "0:00:06"]

1. e4 {[%clk 0:03:00]}  c5 {[%clk 0:02:59]} 2. Nc3 {[%clk 0:03:00]}  Nc6 {[%clk 0:02:58]} 3. g3 {[%clk 0:03:01]}  g6 {[%clk 0:02:58]} 4. Bg2 {[%clk 0:03:01]}  Bg7 {[%clk 0:02:58]} 5. d3 {[%clk 0:03:02]}  d6 {[%clk 0:02:58]} 6. Be3 {[%clk 0:03:02]}  Nf6 {[%clk 0:02:57]} 7. h3 {[%clk 0:03:02]}  O-O {[%clk 0:02:56]} 8. Qd2 {[%clk 0:03:02]}  Rb8 {[%clk 0:02:53]} 9. Bh6 {[%clk 0:03:01]}  Nd4 {[%clk 0:02:51]} 10. Bxg7 {[%clk 0:03:00]}  Kxg7 {[%clk 0:02:50]} 11. f4 {[%clk 0:03:00]}  b5 {[%clk 0:02:49]} 12. Nd1 {[%clk 0:02:59]}  b4 {[%clk 0:02:44]} 13. c3 {[%clk 0:02:59]}  bxc3 {[%clk 0:02:44]} 14. bxc3 {[%clk 0:03:00]}  Nb5 {[%clk 0:02:39]} 15. Nf3 {[%clk 0:03:00]}  Bd7 {[%clk 0:02:37]} 16. O-O {[%clk 0:02:54]}  Qa5 {[%clk 0:02:33]} 17. g4 {[%clk 0:02:46]}  Qa3 {[%clk 0:02:08]} 18. f5 {[%clk 0:02:44]}  e5 {[%clk 0:01:05]} 19. g5 {[%clk 0:02:34]}  Nh5 {[%clk 0:01:05]} 20. f6+ {[%clk 0:02:32]}  Kg8 {[%clk 0:01:05]} 21. Nh2 {[%clk 0:02:19]}  Rfc8 {[%clk 0:00:51]} 22. Ng4 {[%clk 0:01:50]}  Be6 {[%clk 0:00:31]} 23. c4 {[%clk 0:01:38]}  Nd4 {[%clk 0:00:31]} 24. Nde3 {[%clk 0:01:37]}  Nf4 {[%clk 0:00:29]} 25. Rxf4 {[%clk 0:01:33]}  exf4 {[%clk 0:00:28]} 26. Nd5 {[%clk 0:01:32]}  Bxd5 {[%clk 0:00:27]} 27. exd5 {[%clk 0:01:32]}  f3 {[%clk 0:00:27]} 28. Bf1 {[%clk 0:01:07]}  Qb2 {[%clk 0:00:27]} 29. Qe1 {[%clk 0:01:01]}  Re8 {[%clk 0:00:25]} 30. Qc1 {[%clk 0:00:25]}  Ne2+ {[%clk 0:00:18]} 31. Bxe2 {[%clk 0:00:23]}  Qxe2 {[%clk 0:00:18]} 32. Qf1 {[%clk 0:00:17]}  Rb2 {[%clk 0:00:16]} 33. Qf2 {[%clk 0:00:16]}  Qxf2+ {[%clk 0:00:13]} 34. Nxf2 {[%clk 0:00:17]}  Ree2 {[%clk 0:00:12]} 35. Rf1 {[%clk 0:00:17]}  Rxa2 {[%clk 0:00:12]} 36. Ng4 {[%clk 0:00:06]}  Kf8 {[%clk 0:00:07]} 37. Rxf3 {[%clk 0:00:03]}  Ra1+ {[%clk 0:00:06]} 38. Rf1 {[%clk 0:00:02]}  Rxf1+ {[%clk 0:00:07]} 39. Kxf1 {[%clk 0:00:02]}  Rd2 {[%clk 0:00:07]} 40. Nf2 {[%clk 0:00:01]}  a5 {[%clk 0:00:06]} 41. Ke1 {[%clk 0:00:02]}  Rxf2 {[%clk 0:00:06]} 42. Kxf2 {[%clk 0:00:02]}  a4 {[%clk 0:00:07]} 43. Ke2 {[%clk 0:00:03]}  h6 {[%clk 0:00:06]} 0-1


[Site "https://www.chess.com"]

[Event "Titled Tuesday Blitz February 15 Late 2022"]
[White "Jones, Gawain C B"]
[Black "Debray, Christopher"]
[WhiteFideId "409561"]
[BlackFideId "630810"]
[WhiteElo "2657"]
[BlackElo "2369"]
[Result "1-0"]
[Round "05"]
[TimeControl "180+1"]
[Date "2022.02.15"]
[WhiteClock "0:00:28"]
[BlackClock "0:00:07"]

1. Nf3 {[%clk 0:02:51]}  d5 {[%clk 0:02:59]} 2. g3 {[%clk 0:02:51]}  Nf6 {[%clk 0:02:57]} 3. Bg2 {[%clk 0:02:51]}  Bf5 {[%clk 0:02:55]} 4. c4 {[%clk 0:02:50]}  c6 {[%clk 0:02:55]} 5. Qb3 {[%clk 0:02:46]}  Qb6 {[%clk 0:02:54]} 6. d3 {[%clk 0:02:46]}  e6 {[%clk 0:02:52]} 7. Be3 {[%clk 0:02:46]}  Qc7 {[%clk 0:02:47]} 8. Bf4 {[%clk 0:02:43]}  Qb6 {[%clk 0:02:47]} 9. O-O {[%clk 0:02:39]}  Be7 {[%clk 0:02:45]} 10. Nc3 {[%clk 0:02:36]}  O-O {[%clk 0:02:42]} 11. Nh4 {[%clk 0:02:31]}  Bg6 {[%clk 0:02:40]} 12. Nxg6 {[%clk 0:02:27]}  hxg6 {[%clk 0:02:41]} 13. Na4 {[%clk 0:02:22]}  Qxb3 {[%clk 0:02:33]} 14. axb3 {[%clk 0:02:22]}  Nbd7 {[%clk 0:02:34]} 15. cxd5 {[%clk 0:02:15]}  exd5 {[%clk 0:02:32]} 16. e4 {[%clk 0:02:13]}  Nc5 {[%clk 0:02:03]} 17. Nxc5 {[%clk 0:02:08]}  Bxc5 {[%clk 0:02:03]} 18. Be5 {[%clk 0:02:02]}  dxe4 {[%clk 0:01:48]} 19. dxe4 {[%clk 0:01:59]}  Rfe8 {[%clk 0:01:47]} 20. Bxf6 {[%clk 0:01:56]}  gxf6 {[%clk 0:01:48]} 21. Rfd1 {[%clk 0:01:51]}  Rad8 {[%clk 0:01:46]} 22. Kf1 {[%clk 0:01:49]}  Kf8 {[%clk 0:01:45]} 23. Ke2 {[%clk 0:01:49]}  Ke7 {[%clk 0:01:40]} 24. h4 {[%clk 0:01:41]}  Rxd1 {[%clk 0:01:38]} 25. Rxd1 {[%clk 0:01:40]}  Rd8 {[%clk 0:01:39]} 26. Rxd8 {[%clk 0:01:35]}  Kxd8 {[%clk 0:01:40]} 27. g4 {[%clk 0:01:35]}  Bd4 {[%clk 0:01:35]} 28. f4 {[%clk 0:01:31]}  Bxb2 {[%clk 0:01:34]} 29. f5 {[%clk 0:01:30]}  gxf5 {[%clk 0:01:15]} 30. exf5 {[%clk 0:01:29]}  Bc1 {[%clk 0:01:08]} 31. Kf3 {[%clk 0:01:21]}  Kd7 {[%clk 0:01:07]} 32. Bf1 {[%clk 0:01:20]}  Ke7 {[%clk 0:00:57]} 33. Ke4 {[%clk 0:01:14]}  Bd2 {[%clk 0:00:55]} 34. Bc4 {[%clk 0:01:01]}  Be1 {[%clk 0:00:52]} 35. h5 {[%clk 0:01:01]}  Bd2 {[%clk 0:00:53]} 36. Kd4 {[%clk 0:00:53]}  b5 {[%clk 0:00:49]} 37. Bf1 {[%clk 0:00:51]}  Kd6 {[%clk 0:00:49]} 38. Kd3 {[%clk 0:00:50]}  Bg5 {[%clk 0:00:48]} 39. Kd4 {[%clk 0:00:50]}  c5+ {[%clk 0:00:43]} 40. Kc3 {[%clk 0:00:49]}  a6 {[%clk 0:00:44]} 41. Bg2 {[%clk 0:00:48]}  Ke5 {[%clk 0:00:36]} 42. Bb7 {[%clk 0:00:48]}  a5 {[%clk 0:00:35]} 43. Bc6 {[%clk 0:00:47]}  a4 {[%clk 0:00:27]} 44. bxa4 {[%clk 0:00:40]}  bxa4 {[%clk 0:00:28]} 45. Bxa4 {[%clk 0:00:40]}  Kf4 {[%clk 0:00:26]} 46. Bd1 {[%clk 0:00:40]}  Ke5 {[%clk 0:00:20]} 47. Kc4 {[%clk 0:00:40]}  Kd6 {[%clk 0:00:20]} 48. Ba4 {[%clk 0:00:40]}  Bh6 {[%clk 0:00:16]} 49. Be8 {[%clk 0:00:38]}  Ke5 {[%clk 0:00:11]} 50. Kxc5 {[%clk 0:00:25]}  Kf4 {[%clk 0:00:11]} 51. Bxf7 {[%clk 0:00:26]}  Kxg4 {[%clk 0:00:11]} 52. Bg6 {[%clk 0:00:27]}  Bg5 {[%clk 0:00:10]} 53. Kd5 {[%clk 0:00:27]}  Bh6 {[%clk 0:00:10]} 54. Ke6 {[%clk 0:00:27]}  Bg5 {[%clk 0:00:11]} 55. Kf7 {[%clk 0:00:27]}  Kh4 {[%clk 0:00:11]} 56. Kg7 {[%clk 0:00:27]}  Kg4 {[%clk 0:00:11]} 57. h6 {[%clk 0:00:28]}  Kf4 {[%clk 0:00:06]} 58. h7 {[%clk 0:00:28]}  Ke4 {[%clk 0:00:07]} 59. h8=Q {[%clk 0:00:28]} 1-0


[Site "https://www.chess.com"]

[Event "Titled Tuesday Blitz February 15 Late 2022"]
[White "Josse, Mark"]
[Black "Romero Ruscalleda, Josep"]
[WhiteFideId "414476"]
[BlackFideId "2231859"]
[WhiteElo "2272"]
[BlackElo "2412"]
[Result "1/2-1/2"]
[Round "05"]
[TimeControl "180+1"]
[Date "2022.02.16"]
[WhiteClock "0:01:13"]
[BlackClock "0:00:46"]

1. e4 {[%clk 0:03:00]}  g6 {[%clk 0:03:00]} 2. d4 {[%clk 0:02:59]}  Bg7 {[%clk 0:03:01]} 3. c4 {[%clk 0:02:53]}  d6 {[%clk 0:03:01]} 4. Nc3 {[%clk 0:02:53]}  Nc6 {[%clk 0:03:01]} 5. Be3 {[%clk 0:02:51]}  e5 {[%clk 0:03:01]} 6. Nge2 {[%clk 0:02:50]}  f5 {[%clk 0:02:58]} 7. exf5 {[%clk 0:02:50]}  Bxf5 {[%clk 0:02:56]} 8. d5 {[%clk 0:02:50]}  Nce7 {[%clk 0:02:56]} 9. Ng3 {[%clk 0:02:50]}  Bd7 {[%clk 0:02:56]} 10. Bd3 {[%clk 0:02:46]}  Nf6 {[%clk 0:02:55]} 11. f3 {[%clk 0:02:44]}  O-O {[%clk 0:02:53]} 12. Qd2 {[%clk 0:02:45]}  Nf5 {[%clk 0:02:51]} 13. Bg5 {[%clk 0:02:41]}  c6 {[%clk 0:02:34]} 14. O-O-O {[%clk 0:02:40]}  Nd4 {[%clk 0:02:17]} 15. Kb1 {[%clk 0:02:37]}  Qa5 {[%clk 0:02:09]} 16. h4 {[%clk 0:02:35]}  cxd5 {[%clk 0:02:08]} 17. cxd5 {[%clk 0:02:33]}  Nxd5 {[%clk 0:01:58]} 18. Nxd5 {[%clk 0:02:31]}  Qxd5 {[%clk 0:01:57]} 19. h5 {[%clk 0:02:30]}  Be6 {[%clk 0:01:54]} 20. b3 {[%clk 0:02:28]}  Rac8 {[%clk 0:01:31]} 21. hxg6 {[%clk 0:02:25]}  hxg6 {[%clk 0:01:31]} 22. Bxg6 {[%clk 0:02:20]}  Nxb3 {[%clk 0:01:29]} 23. axb3 {[%clk 0:02:18]}  Qxb3+ {[%clk 0:01:28]} 24. Qb2 {[%clk 0:02:19]}  Rc3 {[%clk 0:01:19]} 25. Rxd6 {[%clk 0:02:06]}  Rfc8 {[%clk 0:01:15]} 26. Ne4 {[%clk 0:01:56]}  Qxb2+ {[%clk 0:01:08]} 27. Kxb2 {[%clk 0:01:55]}  Rb3+ {[%clk 0:01:08]} 28. Ka1 {[%clk 0:01:55]}  Ra3+ {[%clk 0:01:02]} 29. Kb2 {[%clk 0:01:51]}  Ra2+ {[%clk 0:00:48]} 30. Kb1 {[%clk 0:01:49]}  Rcc2 {[%clk 0:00:47]} 31. Rxe6 {[%clk 0:01:14]}  Rab2+ {[%clk 0:00:45]} 32. Ka1 {[%clk 0:01:13]}  Ra2+ {[%clk 0:00:45]} 33. Kb1 {[%clk 0:01:13]}  Rab2+ {[%clk 0:00:45]} 34. Ka1 {[%clk 0:01:14]}  Ra2+ {[%clk 0:00:46]} 35. Kb1 {[%clk 0:01:13]} 1/2-1/2


[Site "https://www.chess.com"]

[Event "Titled Tuesday Blitz February 15 Late 2022"]
[White "Karttunen, Mika"]
[Black "Sarana, Alexey"]
[WhiteFideId "502081"]
[BlackFideId "24133795"]
[WhiteElo "2343"]
[BlackElo "2665"]
[Result "0-1"]
[Round "05"]
[TimeControl "180+1"]
[Date "2022.02.16"]
[WhiteClock "0:00:05"]
[BlackClock "0:00:39"]

1. e4 {[%clk 0:03:00]}  c5 {[%clk 0:02:38]} 2. Nf3 {[%clk 0:03:00]}  d6 {[%clk 0:02:39]} 3. d4 {[%clk 0:03:00]}  Nf6 {[%clk 0:02:40]} 4. Nc3 {[%clk 0:03:00]}  cxd4 {[%clk 0:02:40]} 5. Nxd4 {[%clk 0:03:00]}  a6 {[%clk 0:02:40]} 6. h3 {[%clk 0:02:59]}  e6 {[%clk 0:02:37]} 7. g4 {[%clk 0:02:54]}  Nfd7 {[%clk 0:02:36]} 8. Bg2 {[%clk 0:02:41]}  Nc6 {[%clk 0:02:33]} 9. O-O {[%clk 0:02:27]}  Be7 {[%clk 0:02:31]} 10. Kh1 {[%clk 0:02:12]}  O-O {[%clk 0:02:30]} 11. f4 {[%clk 0:02:12]}  Nxd4 {[%clk 0:02:24]} 12. Qxd4 {[%clk 0:02:11]}  b5 {[%clk 0:02:22]} 13. Be3 {[%clk 0:01:59]}  Bb7 {[%clk 0:02:21]} 14. a4 {[%clk 0:01:50]}  e5 {[%clk 0:02:21]} 15. Qd2 {[%clk 0:01:44]}  Bc6 {[%clk 0:02:15]} 16. axb5 {[%clk 0:01:38]}  axb5 {[%clk 0:02:16]} 17. f5 {[%clk 0:01:25]}  h6 {[%clk 0:02:03]} 18. Na2 {[%clk 0:00:47]}  Nf6 {[%clk 0:02:01]} 19. Nc3 {[%clk 0:00:38]}  Qc7 {[%clk 0:01:50]} 20. Nd5 {[%clk 0:00:35]}  Bxd5 {[%clk 0:01:46]} 21. exd5 {[%clk 0:00:36]}  Rfc8 {[%clk 0:01:42]} 22. c3 {[%clk 0:00:32]}  Qc4 {[%clk 0:01:40]} 23. Rfd1 {[%clk 0:00:29]}  Ne4 {[%clk 0:01:38]} 24. Qe1 {[%clk 0:00:27]}  Nc5 {[%clk 0:01:27]} 25. Rxa8 {[%clk 0:00:20]}  Rxa8 {[%clk 0:01:27]} 26. Bf1 {[%clk 0:00:20]}  Qe4+ {[%clk 0:01:25]} 27. Bg2 {[%clk 0:00:21]}  Qc4 {[%clk 0:01:25]} 28. Bf1 {[%clk 0:00:21]}  Qb3 {[%clk 0:01:24]} 29. Bxc5 {[%clk 0:00:20]}  dxc5 {[%clk 0:01:25]} 30. d6 {[%clk 0:00:21]}  Bh4 {[%clk 0:01:23]} 31. Qe2 {[%clk 0:00:11]}  Rd8 {[%clk 0:01:22]} 32. Bg2 {[%clk 0:00:09]}  c4 {[%clk 0:01:11]} 33. d7 {[%clk 0:00:09]}  b4 {[%clk 0:01:07]} 34. cxb4 {[%clk 0:00:09]}  Qxb4 {[%clk 0:01:06]} 35. Qxe5 {[%clk 0:00:09]}  Bf6 {[%clk 0:01:03]} 36. Qe8+ {[%clk 0:00:08]}  Kh7 {[%clk 0:01:02]} 37. Qe2 {[%clk 0:00:08]}  Bxb2 {[%clk 0:01:00]} 38. f6 {[%clk 0:00:08]}  Bxf6 {[%clk 0:00:57]} 39. Be4+ {[%clk 0:00:08]}  Kg8 {[%clk 0:00:56]} 40. Qf3 {[%clk 0:00:08]}  c3 {[%clk 0:00:55]} 41. Qf5 {[%clk 0:00:08]}  Kf8 {[%clk 0:00:52]} 42. Bc2 {[%clk 0:00:08]}  Qb7+ {[%clk 0:00:50]} 43. Kg1 {[%clk 0:00:08]}  Qc6 {[%clk 0:00:47]} 44. Qe4 {[%clk 0:00:06]}  Qc5+ {[%clk 0:00:45]} 45. Kg2 {[%clk 0:00:06]}  g6 {[%clk 0:00:44]} 46. Qf3 {[%clk 0:00:06]}  Kg7 {[%clk 0:00:45]} 47. Qd3 {[%clk 0:00:06]}  Qc6+ {[%clk 0:00:44]} 48. Qf3 {[%clk 0:00:05]}  Qb5 {[%clk 0:00:43]} 49. Rf1 {[%clk 0:00:05]}  Qb6 {[%clk 0:00:40]} 50. Rd1 {[%clk 0:00:06]}  Qb2 {[%clk 0:00:40]} 51. Qd3 {[%clk 0:00:05]}  Rxd7 {[%clk 0:00:39]} 52. Qxd7 {[%clk 0:00:05]}  Qxc2+ {[%clk 0:00:39]} 53. Kf3 {[%clk 0:00:06]}  Qh2 {[%clk 0:00:39]} 54. Qd6 {[%clk 0:00:05]}  Qxh3+ {[%clk 0:00:39]} 55. Qg3 {[%clk 0:00:04]}  Qxg3+ {[%clk 0:00:39]} 56. Kxg3 {[%clk 0:00:05]}  Bg5 {[%clk 0:00:39]} 0-1


[Site "https://www.chess.com"]